bitfinex/quotes_SOLUSD_20220311
["timestamp","ask_amount","ask_price","bid_price","bid_amount"]
[1646963144211,9.13747957,82.086,82.01,18.2933]
[1646963144409,75.35014567,82.086,82.0,41.5233]
[1646963144610,69.25714567,82.085,82.0,41.5233]
[1646963144814,6.094,82.084,82.0,41.5233]
[1646963145007,34.91401519,82.084,82.0,18.2951]
[1646963145209,25.77553562,82.083,82.0,18.2951]
[1646963145410,6.094,82.082,82.0,18.2951]
[1646963145610,32.66687112,82.082,81.97,60.9865]
[1646963145810,28.82001519,82.081,81.971,6.0]
[1646963146109,9.13947957,82.08,81.971,6.0]
[1646963146309,75.35214567,82.08,81.971,6.0]
[1646963146513,69.25714567,82.079,81.99,18.2978]
[1646963146711,6.094,82.078,81.99,18.2978]
[1646963146910,51.82275412,82.078,81.99,18.2978]
[1646963147114,66.2126661,82.077,81.99,18.2978]
[1646963147412,31.87053562,82.076,81.99,18.2978]
[1646963147612,75.35214567,82.076,81.99,18.2978]
[1646963147812,52.41978931,82.074,81.99,18.2978]
[1646963148015,6.095,82.073,81.99,18.2978]
[1646963148312,75.35214567,82.073,81.99,18.2978]
[1646963148514,121.8,82.071,81.98,18.2997]
[1646963148717,127.895,82.07,81.95,99.1457]
[1646963148913,197.15214567,82.07,81.95,84.6057]
[1646963149115,23.52839155,82.069,81.96,14.54]
[1646963149415,9.14047957,82.068,81.96,14.54]
[1646963149616,51.82475412,82.068,81.96,32.8441]
[1646963149814,43.48161005,82.067,81.96,32.8441]
[1646963150016,6.096,82.066,81.96,32.8441]
[1646963150217,75.35314567,82.066,81.96,32.8441]
[1646963150419,43.48161005,82.065,81.96,32.8441]
[1646963150615,6.096,82.064,81.96,32.8441]
[1646963150816,75.35314567,82.064,81.96,32.8441]
[1646963151043,69.25714567,82.063,81.96,32.8441]
[1646963151243,6.096,82.062,81.96,32.8441]
[1646963151446,75.35314567,82.062,81.96,32.8441]
[1646963151653,19.9532185,82.061,81.96,32.8441]
[1646963151848,6.096,82.06,81.96,32.8441]
[1646963152044,51.99848199,82.059,81.96,32.8441]
[1646963152345,6.096,82.058,81.96,32.8441]
[1646963152550,121.8,82.049,81.931,24.46842637]
[1646963152743,121.8,82.049,81.93,61.0164]
[1646963152744,121.8,82.047,81.93,14.54]
[1646963152944,121.8,82.03,81.913,47.4149]
[1646963153147,6.099,82.029,81.913,47.4149]
[1646963153547,121.8,82.027,81.913,47.4149]
[1646963153745,121.8,82.025,81.91,14.54]
[1646963154045,121.8,82.025,81.89,14.54]
[1646963154246,121.8,82.009,81.88,14.54]
[1646963154443,136.34,82.0,81.881,2.94309244]
[1646963154646,6.101,81.999,81.881,2.94309244]
[1646963154847,23.00973893,81.999,81.89,18.3182]
[1646963155045,49.58261005,81.999,81.882,24.46842637]
[1646963155249,52.34840674,81.998,81.882,24.46842637]
[1646963155448,6.102,81.997,81.882,24.46842637]
[1646963155647,51.83075412,81.997,81.882,24.46842637]
[1646963155847,121.8,81.996,81.882,24.46842637]
[1646963156048,121.8,81.992,81.89,18.3197]
[1646963156248,136.34,81.99,81.89,18.3197]
[1646963156448,143.46,81.99,81.89,18.3197]
[1646963156651,6.102,81.989,81.89,18.3197]
[1646963156851,6.102,81.989,81.881,2.94309244]
[1646963156852,75.35914567,81.989,81.881,2.94309244]
[1646963157050,25.77553562,81.988,81.91,18.3151]
[1646963157251,6.101,81.987,81.91,18.3151]
[1646963157453,6.101,81.987,81.89,61.0491]
[1646963157850,31.87653562,81.987,81.88,14.54]
[1646963158050,31.87653562,81.987,81.9,18.317]
[1646963158252,6.101,81.987,81.9,18.317]
[1646963158652,25.77553562,81.986,81.9,18.317]
[1646963158951,6.101,81.985,81.9,18.317]
[1646963159351,25.77553562,81.984,81.91,18.3154]
[1646963159551,6.101,81.983,81.91,18.3154]
[1646963159954,25.77553562,81.982,81.91,18.3154]
[1646963160153,18.3162,81.98,81.91,18.3154]
[1646963160354,55.93077458,81.978,81.91,18.3154]
[1646963160556,6.101,81.977,81.9,18.3172]
[1646963160758,22.926,81.976,81.9,18.3172]
[1646963160955,6.102,81.975,81.9,18.3172]
[1646963161155,31.87753562,81.975,81.89,61.0491]
[1646963161357,6.102,81.975,81.89,14.54]
[1646963161858,22.926,81.976,81.92,18.3128]
[1646963162059,22.926,81.976,81.891,48.4176]
[1646963162258,22.926,81.976,81.91,61.0348]
[1646963162460,22.926,81.976,81.92,14.54]
[1646963162858,22.926,81.976,81.93,18.3094]
[1646963163058,6.101,81.975,81.93,18.3094]
[1646963163859,6.101,81.977,81.93,18.3094]
[1646963169165,6.101,81.977,81.91,14.54]
[1646963169964,24.0095,81.976,81.91,14.54]
[1646963170171,6.101,81.975,81.89,14.54]
[1646963170365,6.101,81.975,81.88,14.54]
[1646963170565,3.04447957,81.974,81.88,14.54]
[1646963170767,6.102,81.973,81.88,14.54]
[1646963171166,3.04447957,81.972,81.88,14.54]
[1646963171370,6.103,81.971,81.87,18.3244]
[1646963171667,6.103,81.971,81.86,14.54]
[1646963171668,3.04447957,81.97,81.86,14.54]
[1646963171871,6.103,81.969,81.87,14.54]
[1646963172068,6.103,81.969,81.88,14.54]
[1646963172466,3.04447957,81.97,81.88,14.54]
[1646963172669,3.04447957,81.97,81.881,121.8]
[1646963172867,24.0547,81.988,81.881,148.77428717]
[1646963173066,24.0547,81.988,81.882,50.55938717]
[1646963173271,24.0547,81.988,81.882,92.73401169]
[1646963173467,24.0547,81.988,81.884,0.37258714]
[1646963173867,6.102,81.977,81.885,42.17462452]
[1646963174068,6.102,81.977,81.901,3.02213263]
[1646963174475,6.102,81.977,81.9,14.54]
[1646963175175,6.102,81.977,81.93,18.311]
[1646963177396,6.102,81.977,81.92,18.3131]
[1646963178396,6.102,81.977,81.93,18.3107]
[1646963178599,6.102,81.977,81.931,2.8889871]
[1646963178803,24.0547,81.988,81.931,2.8889871]
[1646963179299,6.099,81.987,81.931,2.8889871]
[1646963180000,24.0547,81.988,81.931,2.8889871]
[1646963180802,58.72248009,81.987,81.931,2.8889871]
[1646963181000,58.72248009,81.987,81.96,18.3042]
[1646963181507,6.099,81.987,81.96,18.3042]
[1646963181704,6.099,82.007,81.955,5.89]
[1646963181901,31.0668,82.025,81.955,5.89]
[1646963182103,31.0668,82.025,81.99,18.2963]
[1646963182503,58.62432267,82.024,81.987,5.66]
[1646963182705,6.097,82.023,81.987,5.66]
[1646963183104,58.62432267,82.024,81.96,14.54]
[1646963183105,58.62432267,82.024,81.98,18.2998]
[1646963183304,58.62432267,82.024,81.96,60.9937]
[1646963184005,58.62432267,82.024,81.97,18.3021]
[1646963184608,58.62432267,82.024,81.96,60.9937]
[1646963185008,58.62432267,82.024,81.98,18.3001]
[1646963186512,6.097,82.023,81.98,18.3001]
[1646963186914,6.097,82.023,81.96,18.3031]
[1646963187411,6.097,82.023,81.94,14.54]
[1646963188011,6.097,82.023,81.96,18.3044]
[1646963188514,31.59523203,82.023,81.941,24.9762]
[1646963188912,31.59523203,82.023,81.95,18.3052]
[1646963189815,49.54683203,82.023,81.95,18.3052]
[1646963191214,49.54683203,82.023,81.96,18.3046]
[1646963192615,49.54683203,82.023,81.95,18.3066]
[1646963192815,3.04447957,82.022,81.95,18.3066]
[1646963193117,6.098,82.021,81.95,18.3066]
[1646963193315,6.098,82.021,81.946,0.51011074]
[1646963193515,3.04447957,82.02,81.946,0.51011074]
[1646963193714,6.098,82.019,81.946,0.51011074]
[1646963194316,6.098,82.022,81.96,18.3032]
[1646963194518,6.098,82.022,81.961,2.88460903]
[1646963194917,6.098,82.022,81.962,3.04447957]
[1646963195117,6.098,82.023,81.962,10.33447957]
[1646963195319,6.098,82.023,81.962,7.29]
[1646963195721,6.098,82.023,81.96,14.54]
[1646963195945,25.99823203,82.022,81.942,3.04447957]
[1646963196118,6.098,82.021,81.942,3.04447957]
[1646963196418,9.14247957,82.021,81.95,18.3054]
[1646963196617,9.14247957,82.021,81.93,93.883]
[1646963196618,29.0427116,82.02,81.93,32.866]
[1646963196817,29.0427116,82.02,81.93,18.326]
[1646963196818,6.099,82.019,81.93,18.326]
[1646963197018,35.1417116,82.019,81.93,18.326]
[1646963197219,29.0427116,82.018,81.922,3.04447957]
[1646963197419,6.099,82.017,81.922,3.04447957]
[1646963197618,1.63306165,82.015,81.93,18.3108]
[1646963197820,6.099,82.014,81.914,23.0131]
[1646963198019,46.3058,82.013,81.914,23.0131]
[1646963198223,1.63306165,82.01,81.914,23.0131]
[1646963198421,1.63306165,82.009,81.914,23.0131]
[1646963198620,6.099,82.008,81.92,18.3129]
[1646963198820,32.09723203,82.008,81.92,18.3129]
[1646963199020,18.3134,82.0,81.914,23.0131]
[1646963199219,49.3815487,81.998,81.914,23.0131]
[1646963199621,49.3815487,81.998,81.92,18.3134]
[1646963199821,9.14347957,81.997,81.92,18.3134]
[1646963200223,3.04447957,81.996,81.914,23.0131]
[1646963200421,6.099,81.995,81.914,23.0131]
[1646963201023,6.099,81.995,81.92,18.313]
[1646963202926,32.09723203,81.995,81.92,18.313]
[1646963204751,32.09723203,81.995,81.914,23.0131]
[1646963204953,26.57287112,81.994,81.89,14.54]
[1646963205154,6.101,81.993,81.894,24.4743]
[1646963205352,58.67210315,81.993,81.894,24.4743]
[1646963205553,52.57110315,81.992,81.894,24.4743]
[1646963205751,6.101,81.991,81.894,24.4743]
[1646963205956,74.28266208,81.991,81.894,24.4743]
[1646963206154,1.63306165,81.986,81.87,14.54]
[1646963206354,1.63306165,81.98,81.866,3.04447957]
[1646963206555,53.91406165,81.979,81.866,3.04447957]
[1646963206758,1.63306165,81.978,81.866,3.04447957]
[1646963206960,6.103,81.977,81.866,3.04447957]
[1646963207161,25.0180385,81.977,81.866,3.04447957]
[1646963207358,52.57110315,81.976,81.866,3.04447957]
[1646963207556,6.103,81.975,81.866,3.04447957]
[1646963207757,74.54466208,81.975,81.866,3.04447957]
[1646963207956,3.04447957,81.974,81.866,3.04447957]
[1646963208159,6.103,81.973,81.866,3.04447957]
[1646963208357,47.97179096,81.973,81.87,18.3231]
[1646963208559,29.0427116,81.972,81.87,18.3231]
[1646963208757,6.103,81.971,81.87,18.3231]
[1646963208958,64.52690119,81.97,81.871,3.04447957]
[1646963209158,6.103,81.969,81.871,3.04447957]
[1646963209360,6.103,81.969,81.88,18.3222]
[1646963209562,56.66023203,81.969,81.88,18.3222]
[1646963209763,25.99823203,81.968,81.88,18.3222]
[1646963209965,6.103,81.967,81.881,3.04447957]
[1646963210361,6.103,81.968,81.881,3.04447957]
[1646963210762,6.103,81.968,81.9,18.3173]
[1646963210963,25.99823203,81.983,81.9,18.3173]
[1646963210964,25.99823203,81.996,81.9,14.54]
[1646963211166,25.99823203,81.996,81.901,130.84447957]
[1646963211364,18.4849,82.008,81.901,130.84447957]
[1646963211365,18.4849,82.008,81.91,181.8]
[1646963211567,18.4849,82.008,81.92,14.54]
[1646963211764,18.4849,82.008,81.97,18.3019]
[1646963212064,18.4849,82.008,81.911,57.19884078]
[1646963212065,52.67417379,82.007,81.921,67.28258724]
[1646963212264,52.67417379,82.007,81.94,14.54]
[1646963213265,52.67417379,82.007,81.95,18.3064]
[1646963213465,6.099,82.006,81.93,14.54]
[1646963213668,6.099,82.006,81.908,17.16130767]
[1646963213669,30.6894,82.006,81.908,16.66130767]
[1646963213867,9.35460511,82.005,81.891,24.4278]
[1646963214068,121.8,82.003,81.891,24.4278]
[1646963214274,140.108,82.0,81.891,24.4278]
[1646963214471,6.101,81.999,81.891,24.4278]
[1646963214872,1.63306165,81.997,81.891,24.4278]
[1646963215074,121.8,81.995,81.89,14.54]
[1646963215269,70.40376187,81.994,81.89,14.54]
[1646963215768,73.44824144,81.994,81.9,18.3162]
[1646963215969,22.9321,81.993,81.89,14.54]
[1646963216171,6.101,81.992,81.89,14.54]
[1646963217172,6.101,81.992,81.91,18.3155]
[1646963217573,6.101,81.992,81.89,14.54]
[1646963217770,6.101,81.992,81.89,13.04]
[1646963218271,6.101,81.992,81.9,18.3163]
[1646963218470,6.101,81.992,81.89,13.04]
[1646963218673,6.101,81.992,81.89,74.0911]
[1646963219571,6.101,81.992,81.91,61.0362]
[1646963219771,6.101,81.992,81.91,75.5762]
[1646963220373,22.9321,81.993,81.95,18.3048]
[1646963220574,22.9321,81.993,81.95,7.7]
[1646963221573,22.9321,81.993,81.93,14.54]
[1646963222200,22.9321,81.993,81.94,18.3075]
[1646963222379,22.9321,81.993,81.92,14.54]
[1646963222576,6.099,81.992,81.92,14.54]
[1646963222776,6.099,81.992,81.9,14.54]
[1646963224377,20.0,81.991,81.89,61.0512]
[1646963224578,1.63306165,81.95,81.82,14.54]
[1646963224779,1.63306165,81.94,81.82,14.54]
[1646963224978,1.63306165,81.942,81.82,14.54]
[1646963225178,6.106,81.941,81.84,18.3291]
[1646963225377,6.106,81.941,81.82,75.641]
[1646963225378,32.91200941,81.939,81.841,34.42211472]
[1646963225582,18.3283,81.93,81.841,34.42211472]
[1646963225780,23.8334,81.929,81.841,34.42211472]
[1646963226080,26.87787957,81.929,81.841,34.42211472]
[1646963226283,63.60080712,81.927,81.841,34.42211472]
[1646963226480,63.60080712,81.927,81.861,1.82780505]
[1646963226680,3.04447957,81.926,81.861,1.82780505]
[1646963227081,3.04447957,81.926,81.86,18.3252]
[1646963227287,39.01700941,81.925,81.82,14.54]
[1646963227483,65.42788384,81.925,81.83,18.333]
[1646963227682,62.36736341,81.924,81.83,18.333]
[1646963227883,6.106,81.923,81.83,18.333]
[1646963228184,86.9235331,81.923,81.831,34.56743512]
[1646963228381,62.36736341,81.922,81.831,34.56743512]
[1646963228584,6.106,81.921,81.84,18.3314]
[1646963228785,86.9235331,81.921,81.831,34.56743512]
[1646963228983,62.36736341,81.92,81.831,34.56743512]
[1646963229184,6.106,81.919,81.831,34.56743512]
[1646963229383,42.06248898,81.919,81.831,34.56743512]
[1646963229586,3.04447957,81.918,81.831,34.56743512]
[1646963229812,6.106,81.917,81.851,1.68248465]
[1646963230207,3.04447957,81.916,81.851,1.68248465]
[1646963230408,49.50836086,81.914,81.851,1.68248465]
[1646963230607,6.106,81.913,81.851,1.68248465]
[1646963230807,9.15047957,81.913,81.84,18.331]
[1646963231008,42.06248898,81.913,81.84,18.331]
[1646963231211,29.455354,81.912,81.811,3.04447957]
[1646963231412,6.107,81.911,81.81,14.54]
[1646963231609,60.22535345,81.911,81.801,3.04447957]
[1646963231810,59.32288384,81.91,81.811,35.86601475]
[1646963232012,6.107,81.909,81.82,18.3341]
[1646963232213,68.47436341,81.909,81.811,35.86601475]
[1646963232410,62.36736341,81.908,81.811,35.86601475]
[1646963232616,18.3339,81.9,81.811,35.86601475]
[1646963232811,52.65047235,81.898,81.811,35.86601475]
[1646963233012,6.107,81.897,81.83,18.3336]
[1646963234212,6.107,81.897,81.84,18.3314]
[1646963234613,6.107,81.897,81.827,26.39042677]
[1646963236012,6.107,81.897,81.83,17.8321]
[1646963236213,6.107,81.897,81.827,26.39042677]
[1646963236815,52.65047235,81.898,81.828,3.04447957]
[1646963237416,52.65047235,81.898,81.85,18.3285]
[1646963237917,6.106,81.897,81.828,3.04447957]
[1646963238116,6.106,81.897,81.82,14.54]
[1646963238717,6.106,81.897,81.821,27.81319976]
[1646963239119,6.106,81.897,81.84,18.33]
[1646963241521,6.106,81.897,81.834,8.43672001]
[1646963242522,52.65047235,81.898,81.85,18.3288]
[1646963245823,6.106,81.897,81.85,18.3288]
[1646963246224,52.65047235,81.898,81.85,18.3288]
[1646963248124,52.65047235,81.898,81.86,18.3267]
[1646963248325,6.106,81.918,81.861,9.62621588]
[1646963248528,22.6417,81.92,81.861,17.04621588]
[1646963249126,23.6422,81.929,81.861,17.04621588]
[1646963249431,53.88265501,81.928,81.9,18.3164]
[1646963249627,47.77765501,81.928,81.9,18.3164]
[1646963251127,47.77765501,81.928,81.87,14.54]
[1646963251128,47.77765501,81.928,81.89,18.3196]
[1646963252529,6.104,81.939,81.91,18.3154]
[1646963252729,6.103,81.957,81.91,18.3154]
[1646963253329,6.103,81.957,81.881,28.14178289]
[1646963253531,59.15382625,81.956,81.881,28.14178289]
[1646963253729,6.103,81.955,81.89,18.3183]
[1646963253930,6.103,81.955,81.881,28.14178289]
[1646963255229,6.103,81.955,81.9,18.3174]
[1646963258134,6.103,81.955,81.89,18.3194]
[1646963258535,6.103,81.955,81.881,28.14178289]
[1646963259437,6.103,81.955,81.9,18.316]
[1646963260543,32.51387443,81.955,81.89,18.3193]
[1646963260741,32.51387443,81.955,81.891,34.83772247]
[1646963261342,6.103,81.955,81.891,34.83772247]
[1646963261540,6.103,81.955,81.92,18.3127]
[1646963261940,59.15382625,81.956,81.92,18.3127]
[1646963264066,59.15382625,81.956,81.915,1.4121973]
[1646963264266,59.15382625,81.956,81.91,18.3147]
[1646963264466,59.15382625,81.956,81.881,23.7335]
[1646963264870,85.56470068,81.956,81.881,23.7335]
[1646963265066,6.103,81.955,81.881,23.7335]
[1646963265467,26.41087443,81.954,81.881,23.7335]
[1646963265667,6.103,81.953,81.881,23.7335]
[1646963265869,6.103,81.953,81.86,75.6071]
[1646963266067,6.103,81.953,81.89,18.3198]
[1646963266469,6.103,81.953,81.885,32.8800812]
[1646963266668,6.103,81.954,81.885,32.8800812]
[1646963266868,6.103,81.955,81.885,32.8800812]
[1646963267068,6.103,81.955,81.92,18.3129]
[1646963267268,59.15382625,81.956,81.92,18.3129]
[1646963267474,31.17867607,81.955,81.881,24.5424]
[1646963267670,6.103,81.954,81.881,24.5424]
[1646963267871,61.0699,81.97,81.881,24.5424]
[1646963267872,6.103,81.969,81.881,24.5424]
[1646963268075,1.63306165,81.987,81.881,31.1024]
[1646963268272,1.63306165,81.988,81.882,3.04447957]
[1646963268470,6.102,81.987,81.91,61.0304]
[1646963268672,6.101,81.988,81.9,14.54]
[1646963268870,56.13452083,81.986,81.911,32.32564704]
[1646963269071,6.101,81.985,81.911,32.32564704]
[1646963269270,6.101,81.985,81.94,18.3084]
[1646963269672,6.101,81.985,81.938,32.32564704]
[1646963269873,56.13452083,81.986,81.938,32.32564704]
[1646963270076,56.13452083,81.986,81.92,14.54]
[1646963270775,56.13452083,81.986,81.94,18.3083]
[1646963274183,56.13452083,81.986,81.95,18.3064]
[1646963274381,56.13452083,81.986,81.95,44.90797243]
[1646963276586,6.099,82.004,81.95,26.60157243]
[1646963276786,6.099,82.006,81.95,32.42157243]
[1646963276986,1.63306165,82.017,81.96,14.54]
[1646963277185,1.63306165,82.023,81.96,14.54]
[1646963277385,114.4,82.033,81.96,14.54]
[1646963277386,1.63306165,82.028,81.96,14.54]
[1646963277587,60.24522167,82.027,81.96,14.54]
[1646963277786,60.24522167,82.027,81.99,18.2968]
[1646963278286,114.4,82.033,81.99,20.24]
[1646963278686,114.4,82.033,82.02,18.2908]
[1646963279287,114.4,82.033,81.99,14.54]
[1646963279489,113.9,82.033,81.99,14.54]
[1646963280088,50.14578688,82.046,81.99,14.54]
[1646963280287,50.14578688,82.046,81.991,36.03119682]
[1646963280488,28.27707946,82.045,81.991,36.03119682]
[1646963281088,28.27707946,82.045,82.0,18.2936]
[1646963282189,6.095,82.044,82.0,18.2936]
[1646963283192,6.095,82.044,81.897,4.18765962]
[1646963283193,28.27707946,82.043,81.96,60.992]
[1646963283391,6.097,82.042,81.969,28.68996226]
[1646963283596,9.14147957,82.042,81.969,28.68996226]
[1646963283789,28.27707946,82.041,81.97,14.54]
[1646963284090,31.32155903,82.041,81.97,14.54]
[1646963284290,28.27707946,82.041,81.99,18.2955]
[1646963284490,6.096,82.04,81.991,7.55995751]
[1646963284691,34.37307946,82.04,81.991,7.55995751]
[1646963284892,28.27707946,82.04,81.991,7.55995751]
[1646963285491,23.4284,82.043,81.991,7.55995751]
[1646963285891,50.14578688,82.046,81.991,7.55995751]
[1646963286491,50.14578688,82.046,82.02,18.2896]
[1646963286994,50.14578688,82.046,82.02,16.7896]
[1646963291999,50.14578688,82.046,81.981,6.095]
[1646963292200,50.14578688,82.046,81.971,6.096]
[1646963292398,27.80353279,82.045,81.971,6.096]
[1646963292899,22.95547443,82.044,81.967,30.64679749]
[1646963293099,22.95547443,82.044,81.97,18.2998]
[1646963293100,6.097,82.043,81.97,18.2998]
[1646963293302,33.90053279,82.043,81.97,18.2998]
[1646963293501,29.05247443,82.043,81.967,30.64679749]
[1646963293701,27.80353279,82.042,81.967,30.64679749]
[1646963293902,6.097,82.041,81.967,30.64679749]
[1646963294303,33.90053279,82.041,81.967,30.64679749]
[1646963295107,33.90053279,82.041,81.99,18.2956]
[1646963295910,56.85600722,82.041,81.97,60.9877]
[1646963296106,56.85600722,82.041,81.98,18.298]
[1646963296307,27.80353279,82.041,81.97,60.9877]
[1646963296507,27.80353279,82.041,81.98,60.9818]
[1646963296911,27.80353279,82.041,81.981,27.56886954]
[1646963297833,27.80353279,82.041,81.99,18.2967]
[1646963298440,6.096,82.04,81.99,18.2967]
[1646963298835,27.80353279,82.039,81.99,18.2967]
[1646963299036,6.096,82.038,81.99,18.2967]
[1646963299633,27.80353279,82.037,81.96,14.54]
[1646963299834,6.097,82.036,81.98,18.2979]
[1646963300133,27.80353279,82.035,81.98,18.2979]
[1646963300337,6.097,82.034,81.98,18.2979]
[1646963300734,76.41344841,82.033,81.98,18.2979]
[1646963301035,27.80353279,82.032,81.98,18.2979]
[1646963305138,1.63306165,82.032,81.981,7.36237865]
[1646963305340,51.91723279,82.044,81.99,18.2954]
[1646963305538,24.1137,82.044,81.99,18.2954]
[1646963306341,6.096,82.051,82.01,18.2898]
[1646963306539,50.89437833,82.054,82.01,18.2898]
[1646963308545,50.89437833,82.054,82.0,18.2931]
[1646963312350,50.89437833,82.054,81.99,18.2953]
[1646963312550,6.095,82.053,81.928,12.73994571]
[1646963312750,1.63306165,82.05,81.95,14.54]
[1646963312949,6.096,82.049,81.967,30.81359272]
[1646963313352,7.72906165,82.05,81.97,18.2989]
[1646963313754,7.72906165,82.05,81.967,30.81359272]
[1646963313951,1.63306165,82.049,81.967,30.81359272]
[1646963314151,6.096,82.048,81.96,60.9882]
[1646963314554,33.89953279,82.048,81.97,18.3016]
[1646963314759,33.89953279,82.048,81.95,14.54]
[1646963314760,50.75900722,82.047,81.95,14.54]
[1646963314955,6.097,82.046,81.94,14.54]
[1646963315156,84.88628679,82.046,81.935,6.097]
[1646963315454,1.63306165,82.029,81.95,18.3064]
[1646963315654,1.63306165,82.025,81.935,6.097]
[1646963315854,6.098,82.028,81.935,6.097]
[1646963315855,1.63306165,82.022,81.935,6.097]
[1646963316086,7.73206165,82.021,81.935,6.097]
[1646963316283,52.30048654,82.02,81.935,6.097]
[1646963316479,6.099,82.019,81.94,18.3075]
[1646963316681,6.099,82.019,81.941,9.51586582]
[1646963316881,3.04447957,82.018,81.941,9.51586582]
[1646963317080,6.099,82.017,81.941,9.51586582]
[1646963317487,6.099,82.017,81.95,18.3068]
[1646963318084,29.05447443,82.017,81.95,18.3068]
[1646963318285,56.85800722,82.017,81.95,18.3068]
[1646963318984,56.85800722,82.017,81.935,6.097]
[1646963319184,58.49106887,82.017,81.94,18.3084]
[1646963319385,56.85800722,82.017,81.94,18.3084]
[1646963319586,58.49106887,82.017,81.94,18.3084]
[1646963319786,56.85800722,82.017,81.94,18.3084]
[1646963320390,58.49106887,82.017,81.94,18.3084]
[1646963320590,56.85800722,82.017,81.94,18.3084]
[1646963320996,58.49106887,82.017,81.94,18.3084]
[1646963322390,1.63306165,82.016,81.94,18.3084]
[1646963322590,6.099,82.015,81.94,18.3084]
[1646963322790,50.75900722,82.015,81.94,18.3084]
[1646963322992,56.85800722,82.014,81.94,18.3084]
[1646963323392,74.01290722,82.013,81.94,18.3084]
[1646963323598,6.099,82.012,81.94,18.3084]
[1646963323797,56.85800722,82.012,81.94,18.3084]
[1646963324002,50.75900722,82.011,81.94,18.3084]
[1646963324199,6.099,82.01,81.94,18.3084]
[1646963324399,56.85800722,82.01,81.94,18.3084]
[1646963324599,50.75900722,82.009,81.94,18.3084]
[1646963324805,6.099,82.008,81.94,18.3084]
[1646963325000,18.3096,82.0,81.94,18.3084]
[1646963325199,29.3529,81.999,81.94,18.3084]
[1646963325400,56.19867525,81.998,81.94,18.3084]
[1646963325598,6.099,81.997,81.94,18.3084]
[1646963331621,5.599,81.997,81.94,18.3084]
[1646963332208,5.599,81.997,81.95,18.3065]
[1646963332409,5.599,81.997,81.935,6.097]
[1646963332608,56.19867525,81.998,81.935,6.097]
[1646963333311,56.19867525,81.998,81.96,18.304]
[1646963334109,56.19867525,81.998,81.935,6.097]
[1646963334310,33.90253279,81.997,81.935,6.097]
[1646963334729,27.80353279,81.996,81.935,6.097]
[1646963334929,6.099,81.995,81.935,6.097]
[1646963337432,6.099,81.995,81.94,18.3086]
[1646963337631,6.099,81.995,81.935,6.097]
[1646963337832,56.19867525,81.998,81.935,6.097]
[1646963338233,56.19867525,81.998,81.94,14.54]
[1646963338432,23.8992,82.024,81.94,14.54]
[1646963338634,24.3762,82.023,81.94,14.54]
[1646963339336,24.3762,82.023,81.98,18.2984]
[1646963339532,50.44444867,82.022,81.98,18.2984]
[1646963340234,78.24798146,82.022,81.97,18.3017]
[1646963340436,6.097,82.021,81.97,18.3017]
[1646963341135,6.097,82.021,81.97,18.3022]
[1646963341336,78.24798146,82.022,81.96,60.9979]
[1646963342337,78.24798146,82.022,81.97,18.3016]
[1646963342536,84.34498146,82.022,81.97,18.3016]
[1646963343938,78.24798146,82.022,81.97,18.3016]
[1646963346743,1.63306165,82.007,81.92,14.54]
[1646963346949,1.63306165,81.997,81.9,14.54]
[1646963347143,1.63306165,81.995,81.901,23.573]
[1646963347343,6.101,81.994,81.901,23.573]
[1646963347544,56.47865859,81.993,81.901,23.573]
[1646963347744,6.101,81.992,81.901,23.573]
[1646963347947,6.101,81.992,81.92,18.3109]
[1646963348144,27.80353279,81.991,81.901,23.573]
[1646963348345,6.101,81.99,81.901,23.573]
[1646963348845,27.80353279,81.989,81.93,18.3073]